Cogmind - Beta 16.1 @@@ ROGUE MODE // 2026.04.13 @ 23:16:40 Player: Krysmphoenix Result: Destroyed by C-17 Slicer with Blade Saw Performance ------------- Evolutions (4) 2000 Regions Visited (5) 1000 Robots Destroyed (55) 275 Value Destroyed (1454) 1454 Prototype IDs (1) 20 Alien Tech Used (0) 0 Bonus (0) 0 TOTAL SCORE: 4749 Bonus ------- None Cogmind --------- Core Integrity 0/850 Matter 210/300 Energy 100/100 System Corruption 4% Temperature Cool (0) Movement Core (50) Location -6/Factory Parts ------- > --- POWER (2) -------- (None) > --- PROPULSION (4) --- (None) > --- UTILITY (7) ------ Improved Propulsion Shielding > --- WEAPON (2) ------- (None) > --- INVENTORY (5) ---- Weight Redist. System Weight Redist. System Kinecellerator Peak State ------------ > --- POWER ------------ Backup Power III Micro Nuclear Core > --- PROPULSION ------- Backup Propulsion III Improved Flight Unit Cesium-ion Thruster Xenon Bombardment Thruster > --- UTILITY ---------- Weight Redist. System Improved Targeting Computer Improved Targeting Computer Advanced Targeting Computer Core Analyzer ECM Suite Hardlight Generator > --- WEAPON ----------- Flak Gun > --- INVENTORY -------- Weight Redist. System Weight Redist. System Kinecellerator Minigun [Rating: 42] Favorites ----------- Power Light Ion Engine Engine Light Ion Engine Power Core Light Nuclear Core Propulsion Flight Unit Wheel Wheel Hover Unit Backup Propulsion III Flight Unit Flight Unit Utility Improved Targeting Computer Device ECM Suite Processor Improved Targeting Computer Hackware System Shield Protection Improved Light Armor Plating Weapon Flak Gun Energy Gun EM Pulse Gun Ballistic Gun Flak Gun Ballistic Cannon Light Cannon Special Weapon Mining Laser Impact Weapon Heavy Hammer Build | -11 -10 -9 -8 -7 -6 ------- Run | Yrd Mat Mat Mat Fac Fac Slots Evolved 8 | . . 2 2 2 2 Power 1 | . . . 1 . . Propulsion 2 | . . 1 . . 1 Utility 5 | . . 1 1 2 1 Weapon . | . . . . . . Parts Attached 71 | 9 10 21 14 11 6 Power 11 | 2 1 3 4 1 . Engine 9 | 2 1 3 3 . . Core 2 | . . . 1 1 . Reactor . | . . . . . . Propulsion 26 | 3 5 8 4 2 4 Treads . | . . . . . . Leg . | . . . . . . Wheel 3 | 3 . . . . . Hover 1 | . . . . . 1 Flight 22 | . 5 8 4 2 3 Utility 20 | 2 2 4 3 7 2 Device 9 | 2 1 1 1 3 1 Storage . | . . . . . . Processor 7 | . 1 3 1 2 . Hackware 1 | . . . 1 . . Protection 3 | . . . . 2 1 Artifact . | . . . . . . Weapon 14 | 2 2 6 3 1 . Energy Gun 1 | 1 . . . . . Energy Cannon . | . . . . . . Ballistic Gun 6 | 1 1 2 1 1 . Ballistic Cannon 2 | . 1 1 . . . Launcher . | . . . . . . Special Weapon 1 | . . 1 . . . Impact Weapon 4 | . . 2 2 . . Slashing Weapon . | . . . . . . Piercing Weapon . | . . . . . . Special Melee Weapon . | . . . . . . Unidentified Prototypes 1 | . . . . 1 . Parts Lost 35 | . 2 9 12 2 10 Power 6 | . 1 2 2 . 1 Propulsion 19 | . 1 4 8 . 6 Utility 7 | . . 1 1 2 3 Weapon 3 | . . 2 1 . . Highest Loss Streak 10 | . 1 9 4 1 10 To Critical Strikes . | . . . . . . Average Backups 4 | 1 4 3 4 4 4 Power . | . . . . . . Propulsion . | . 1 1 . . . Utility . | . . . . 1 3 Weapon 1 | . 1 1 2 1 . Tool/Special . | . . . . . . Unused Backups 17 | 1 4 2 3 5 2 Power 2 | . 1 . . 1 . Propulsion 4 | 1 2 . . 1 . Utility 5 | . . 2 . 1 2 Weapon 4 | . 1 . 3 . . Tool/Special 2 | . . . . 2 . Average Slot Usage (%) 81 | . 90 88 80 76 62 Engine 8 | . 13 9 9 5 3 Core 1 | . . . 1 1 3 Hover 1 | . . . . 5 3 Flight 20 | . 24 28 21 10 13 Device 10 | . 14 15 5 6 12 Processor 22 | . 13 15 25 34 19 Ballistic Gun 6 | . 7 5 7 7 3 Ballistic Cannon 4 | . 10 7 1 . . Impact Weapon 2 | . . 5 6 . . Peak Build Rating 42 | 7 7 14 24 38 42 Average Rating 17 | 4 6 9 17 32 28 On Entrance 13 | . 7 6 14 17 36 Avg Prop Armor Cover (%) 4 | . . . . 5 4 Naked Turns 10 | . . . . . 10 Heaviest Build 19 | 11 11 12 15 15 19 Greatest Support 26 | 26 20 15 15 17 25 Greatest Overweight (x) 2 | . . . 2 2 . Average Overweight (x) . | . . . . . . Largest Inventory Capacity 5 | 5 5 5 5 5 5 Average Capacity 5 | 5 5 5 5 5 5 Most Carried 5 | 4 5 5 5 5 5 Average Carried 4 | 1 4 3 4 4 4 Final Capacity 5 | 5 5 5 5 5 5 Final Carried 5 | 2 5 5 4 5 3 Class Distribution -------------------- 56% | Mutant 23% | Scavenger-Mutant 15% | Sprinter 5% | Scavenger-Sprinter Dominant Class ---------------- Mutant | -10/Materials Scavenger-Mutant | -9/Materials Scavenger-Mutant | -8/Materials Mutant | -7/Factory Mutant | -6/Factory Resources | -11 -10 -9 -8 -7 -6 ----------- Run | Yrd Mat Mat Mat Fac Fac Matter Collected 1380 | 326 226 301 356 155 16 Remotely 531 | 73 117 191 . 150 . Salvage Created 1563 | 141 223 380 619 187 13 Parts 96 | 11 19 23 25 15 3 Haulers Intercepted . | . . . . . . Recyclers Shooed . | . . . . . . Parts Field Recycled . | . . . . . . Retrieved Matter . | . . . . . . Parts Self-Destructed . | . . . . . . Prevented . | . . . . . . Parts Restored . | . . . . . . Kills | -11 -10 -9 -8 -7 -6 ------- Run | Yrd Mat Mat Mat Fac Fac Combat Hostiles Destroyed 51 | . 13 18 14 5 1 Melee 6 | . . . 6 . . Guns 14 | . 1 3 4 5 1 Cannons 25 | . 10 14 1 . . AOE 2 | . 2 . . . . Classes Destroyed 6 | 2 2 1 . . 1 Tunneler 2 | 2 . . . . . Recycler 2 | 1 . . 1 . . Swarmer 22 | . 9 10 3 . . Cutter 1 | . . . . . 1 Grunt 18 | . 4 6 4 4 . Sentry 10 | . . 2 7 1 . Best Kill Streak 10 | 3 3 10 6 3 1 Combat Bots Only 10 | . 3 10 6 3 1 Max Kills in Single Turn 2 | 1 2 1 1 1 1 Gunslinging . | . . . . . . Exploded 2 | . 2 . . . . Melee 1 | . . . 1 . . Uniques/NPCs Destroyed . | . . . . . . Combat | -11 -10 -9 -8 -7 -6 -------- Run | Yrd Mat Mat Mat Fac Fac Hostile Shots Fired 345 | . 40 81 90 49 85 Missed 129 | . 15 22 33 21 38 Hits 216 | . 25 59 57 28 47 Melee 25 | . . . . . 25 Projectile 191 | . 25 59 57 28 22 AOE 3 | . . . . . 3 Critical Strikes 15 | . . . . . 15 Damage Taken 3183 | . 242 603 811 384 1143 Core 1356 | . 47 196 159 97 857 Absorbed by Shields . | . . . . . . Redirected to Shielding 12 | . . . . . 12 Regen/Repaired (Parts) 26 | . . 26 . . . Core Remaining (%) 77 | 100 81 51 71 86 . Volleys Fired 166 | 12 34 53 46 19 2 Largest 2 | 1 2 1 1 1 1 Hottest 100 | 20 60 100 33 28 28 Shots Fired 169 | 12 37 53 46 19 2 Gun 86 | 12 6 21 26 19 2 Cannon 79 | . 31 28 20 . . Launcher . | . . . . . . Special 4 | . . 4 . . . Kinetic 163 | 12 35 49 46 19 2 Thermal 4 | . . 4 . . . Explosive . | . . . . . . Electromagnetic 2 | . 2 . . . . Robot Hit Streak 29 | 7 10 16 29 29 2 Robot Miss Streak 6 | 3 2 1 2 3 6 Penetration Max . | . . . . . . Secondary Targets . | . . . . . . Shots Hit Robots 163 | 8 29 44 61 19 2 Core Hits 89 | 3 13 21 17 32 3 Critical Kills 1 | . . . 1 . . Critical Parts Destroyed 5 | . . . 5 . . Critical Strikes 10 | . 1 2 7 . . Destroy 1 | . . . 1 . . Blast 4 | . 1 2 1 . . Smash 5 | . . . 5 . . Melee Attacks 25 | . . 3 22 . . Impact 25 | . . 3 22 . . Slashing . | . . . . . . Piercing . | . . . . . . Sneak Attacks 1 | . . . 1 . . Combat Hostiles 1 | . . . 1 . . Follow-up Attacks . | . . . . . . Damage Inflicted 3317 | 107 549 723 1436 478 24 Guns 1161 | 107 57 125 371 478 23 Cannons 1205 | . 426 361 418 . . Explosions 66 | . 66 . . . . Melee 783 | . . 136 647 . . Ramming 6 | . . 5 . . 1 Kinetic 2343 | 107 460 486 789 478 23 Thermal 162 | . 66 96 . . . Explosive . | . . . . . . Electromagnetic 23 | . 23 . . . . Impact 783 | . . 136 647 . . Slashing . | . . . . . . Piercing . | . . . . . . Highest Corruption 4 | . . . 2 2 4 Average Corruption 2 | . . . 2 1 2 Corruption Purged . | . . . . . . Corruption Blocked . | . . . . . . Effects 10 | . . . . 7 3 Message Errors 2 | . . . . 1 1 Matter Fused 1 | . . . . 1 . Heat Flow Errors 1 | . . . . 1 . Energy Discharges 4 | . . . . 2 2 Data Loss (major) 1 | . . . . 1 . Alerts 1 | . . . . 1 . Overload Shots . | . . . . . . Overflow Damage 254 | . 27 30 197 . . Projectiles 14 | . . 14 . . . Explosions 27 | . 27 . . . . Melee 213 | . . 16 197 . . Knockbacks 6 | . 3 2 1 . . Impact 1 | . . . 1 . . Kinetic 4 | . 2 2 . . . Secondary 1 | . 1 . . . . Self-Inflicted Damage 27 | . 25 2 . . . Shots 1 | . 1 . . . . Rammed 5 | . . 3 . . 2 Targets Rammed 5 | . . 3 . . 2 Kicked . | . . . . . . Crushed . | . . . . . . Highest Temperature 158 | . 12 46 16 158 . Average Temperature 15 | . 7 21 4 50 . Received Heat Transfer 570 | . 33 138 252 135 12 Siege Activations . | . . . . . . Martial Activations . | . . . . . . Shielding Activations . | . . . . . . Robots Disrupted . | . . . . . . Combat Hostiles . | . . . . . . Robots Corrupted 4 | . . 1 3 . . Combat Hostiles 4 | . . 1 3 . . Parts Fried 3 | . . . 3 . . Impact Corruptions 10 | . . 2 8 . . Robots Melted . | . . . . . . Combat Hostiles . | . . . . . . Parts Melted . | . . . . . . Heat Transferred 300 | . 100 200 . . . Parts Sabotaged . | . . . . . . Parts Stolen . | . . . . . . Parts Stripped . | . . . . . . Power Chain Reactions 1 | . 1 . . . . Alert | -11 -10 -9 -8 -7 -6 ------- Run | Yrd Mat Mat Mat Fac Fac Maximum Alert Level 1 | . . 1 . . . Low Security (%) 91 | 100 100 60 100 100 100 Level 1 8 | . . 39 . . . Level 2 . | . . . . . . Level 3 . | . . . . . . Level 4 . | . . . . . . Level 5 . | . . . . . . High Security . | . . . . . . Max Security . | . . . . . . Peak Influence 259 | 10 113 259 175 82 80 Initial 65 | . . 3 65 62 . Average 81 | . 41 168 125 34 3 Influence Increases 1655 | 15 316 488 446 241 149 Destroy 0b10 Robot/C 1020 | . 260 360 280 100 20 Destroy 0b10 Robot/NC 20 | 15 . . 5 . . Destroy Leader 240 | . 40 70 90 30 10 Successful Hack 140 | . 13 43 26 44 14 Destroy Structure 10 | . 3 . . 7 . Partial Spotted 75 | . . . 45 30 . Lose Combat Pursuer 150 | . . 15 . 30 105 Influence Decreases 1575 | 15 308 342 463 378 69 Entered New Map 169 | . . 5 89 75 . Time Decay 970 | 15 186 247 254 236 32 Lost Part 287 | . 20 90 120 20 37 Lost Ally 47 | . . . . 47 . Purge Threat 102 | . 102 . . . . Squads Dispatched 13 | . 1 4 . 7 1 Investigation 4 | . 1 1 . 2 . Extermination 1 | . . . . 1 . Reinforcement 5 | . . 3 . 1 1 Assault . | . . . . . . Garrison 3 | . . . . 3 . Intercept . | . . . . . . Searches Triggered . | . . . . . . Construction Impeded 1 | . . . . 1 . Haulers Reinforced . | . . . . . . Active Scanning Responses . | . . . . . . Cargo Convoy Interrupts . | . . . . . . Stealth | -11 -10 -9 -8 -7 -6 --------- Run | Yrd Mat Mat Mat Fac Fac Distress Signals 6 | . 1 4 1 . . Communications Jammed . | . . . . . . Distress Signals . | . . . . . . Times Spotted 111 | . 19 39 22 17 14 Peak Tracking Total 13 | . 4 8 4 5 13 Tactical Retreats 19 | . 2 8 3 3 3 ECM-based Alert Blocks 40 | . 5 21 7 7 . Traps | -11 -10 -9 -8 -7 -6 ------- Run | Yrd Mat Mat Mat Fac Fac Traps Triggered 8 | . 1 . 1 3 3 Indirectly . | . . . . . . Trap Hack Attempts . | . . . . . . Triggered . | . . . . . . Disarmed . | . . . . . . Reprogrammed . | . . . . . . Reused . | . . . . . . Traps Extracted . | . . . . . . Installed . | . . . . . . Triggered . | . . . . . . Machines | -11 -10 -9 -8 -7 -6 ---------- Run | Yrd Mat Mat Mat Fac Fac Machines Disabled . | . . . . . . Max in Single Turn . | . . . . . . Machines Repaired . | . . . . . . Machines Dismantled . | . . . . . . Machines Sabotaged . | . . . . . . Overloaded Fab Kills . | . . . . . . Hacking | -11 -10 -9 -8 -7 -6 --------- Run | Yrd Mat Mat Mat Fac Fac Machines Accessed 34 | . 8 6 7 11 2 Terminals 21 | . 6 4 4 7 . Fabricators 2 | . . . . 1 1 Repair Stations 4 | . 1 1 1 1 . Recycling Units 4 | . 1 . 1 1 1 Scanalyzers 2 | . . 1 1 . . Garrison Access 1 | . . . . 1 . Total Hacks 94 | . 17 22 26 24 5 Successful 43 | . 8 10 11 11 3 Failed 50 | . 9 12 14 13 2 Catastrophic 13 | . 2 3 5 3 . Database Lockouts 1 | . . . 1 . . Manual 63 | . 15 16 19 9 4 Terminals 65 | . 14 16 20 15 . Fabricators 6 | . . . . 3 3 Repair Stations 8 | . 1 2 2 3 . Recycling Units 7 | . 2 . 2 1 2 Scanalyzers 6 | . . 4 2 . . Garrison Access 2 | . . . . 2 . Terminal Hacks 6 | . 1 . 2 3 . Record 1 | . . . 1 . . Open DSF 2 | . . . . 2 . Branch Access Points 1 | . . . 1 . . Unreport Threat 1 | . 1 . . . . Locate Traps 1 | . . . . 1 . Fabricator Hacks 2 | . . . . 2 . Network Status 1 | . . . . 1 . Build 1 | . . . . 1 . Repair Station Hacks 3 | . . 2 . 1 . Scan Component 1 | . . 1 . . . Repair 1 | . . 1 . . . Refit 1 | . . . . 1 . Recycling Unit Hacks 5 | . 1 . 2 1 1 Report Inventory 3 | . 1 . 1 . 1 Retrieve Components 2 | . . . 1 1 . Scanalyzer 4 | . . 3 1 . . Retrieve Study 4 | . . 3 1 . . Garrison Access Hacks . | . . . . . . Unauthorized Hacks 23 | . 6 5 6 4 2 Terminals 19 | . 4 5 6 4 . Assimilate 5 | . . 2 1 2 . Botnet 13 | . 4 3 4 2 . Operators 1 | . . . 1 . . Fabricators 1 | . . . . . 1 Liberate 1 | . . . . . 1 Repair Stations 1 | . 1 . . . . Mechanics 1 | . 1 . . . . Recycling Units 2 | . 1 . . . 1 Reject 2 | . 1 . . . 1 Scanalyzers . | . . . . . . Garrison Access . | . . . . . . Data Cores Recovered . | . . . . . . Used . | . . . . . . Hacking Detections 27 | . 7 6 7 6 1 Full Trace Events 5 | . 1 2 . 2 . Feedback Events . | . . . . . . Feedback Blocked . | . . . . . . Robot Schematics Acquired . | . . . . . . Robots Built 3 | . . . . 3 . Authchips . | . . . . . . Time 116 | . . . . 116 . Total Robot Build Rating 9 | . . . . 9 . Part Schematics Acquired . | . . . . . . Parts Built . | . . . . . . Authchips . | . . . . . . Time . | . . . . . . Total Part Build Rating . | . . . . . . Part Studies Acquired 4 | . . 3 1 . . Parts Repaired 1 | . . 1 . . . Time 26 | . . 26 . . . Parts Recycled . | . . . . . . Recycled Matter . | . . . . . . Retrieved Matter . | . . . . . . Retrieved Components 11 | . . . 9 2 . Parts Scanalyzed . | . . . . . . Part Schematics Acquired . | . . . . . . Parts Damaged . | . . . . . . Bothacking | -11 -10 -9 -8 -7 -6 ------------ Run | Yrd Mat Mat Mat Fac Fac Used RIF Installer . | . . . . . . Robots Hacked . | . . . . . . Non-combat . | . . . . . . Combat . | . . . . . . Robot Hacks Applied . | . . . . . . Relay Couplers Released . | . . . . . . Fabnet Peak Effective % . | . . . . . . Robots Rewired . | . . . . . . Allies Hacked . | . . . . . . Hacks Repelled . | . . . . . . Allies | -11 -10 -9 -8 -7 -6 -------- Run | Yrd Mat Mat Mat Fac Fac Total Allies 5 | . . . . 5 . Largest Group 3 | . . . . 3 1 Highest-Rated Group 75 | . . . . 75 10 Highest-Rated Ally 26 | . . . . 26 10 Total Orders . | . . . . . . Ally Attacks 9 | . . . . 9 . Total Damage 210 | . . . . 210 . Kills . | . . . . . . Allies Corrupted . | . . . . . . Allies Melted . | . . . . . . Intel | -11 -10 -9 -8 -7 -6 ------- Run | Yrd Mat Mat Mat Fac Fac Active Infowar (turns) 1376 | 7 291 448 338 160 132 Optics 204 | . . 204 . . . Seismic 34 | 7 27 . . . . ECM 1342 | . 264 448 338 160 132 Robot Analysis Total . | . . . . . . Derelict Logs Recovered . | . . . . . . Drone Launches . | . . . . . . Drone Recoveries . | . . . . . . Exploration | -11 -10 -9 -8 -7 -6 ------------- Run | Yrd Mat Mat Mat Fac Fac Turns Passed 2494 | 99 479 543 557 583 233 Spaces Moved 2897 | 65 505 493 544 834 456 Core 175 | 9 . 13 39 7 107 Treads . | . . . . . . Legs . | . . . . . . Wheels 115 | 56 59 . . . . Hover 178 | . . . . 178 . Flight 2429 | . 446 480 505 649 349 Fastest Speed 28 | 50 37 32 32 37 28 Average Speed 43 | 82 42 33 48 48 37 Slowest Speed 200 | 90 80 50 200 200 50 Overloaded Moves . | . . . . . . Propulsion Burnouts . | . . . . . . Robots Hopped 13 | . 1 7 1 3 1 Potential Cave-ins . | . . . . . . Cave-ins Triggered . | . . . . . . Exploration Rate (%) 36 | 3 87 53 35 26 12 Regions Visited 5 Branch Regions . Pre-discovered Areas . | . . . . . . Known Exits Taken . | . . . . . . Unknown Exits Taken 5 | 1 1 1 1 1 . Scrap Searched . | . . . . . . Spaces Dug . | . . . . . . Terrain Destroyed 3 | . 3 . . . . Melee . | . . . . . . Projectile . | . . . . . . AOE 3 | . 3 . . . . Terrain Rammed . | . . . . . . Walls Destroyed . | . . . . . . Machines Disabled . | . . . . . . Actions | -11 -10 -9 -8 -7 -6 --------- Run | Yrd Mat Mat Mat Fac Fac Total 3901 | 98 738 801 753 997 514 Wait 594 | . 154 202 92 103 43 Move 2867 | 64 502 479 541 827 454 Hop 12 | . 1 6 1 3 1 Pick Up 95 | 11 19 24 18 19 4 Fast Attach . | . . . . . . Attach 49 | 7 4 12 11 10 5 Detach 6 | . 2 . 2 2 . Swap 34 | 2 7 10 10 3 2 Drop 48 | 2 15 9 10 11 1 Fire 166 | 12 34 53 46 19 2 Melee 25 | . . 3 22 . . Ram 5 | . . 3 . . 2 Kick . | . . . . . . Crush . | . . . . . . Escape Stasis . | . . . . . . Rewire . | . . . . . . Trap . | . . . . . . Miscellaneous . | . . . . . . Route ------- -11/Scrapyard -10/Materials (discovered 4 exits: *Mat x2 / [*Min x2]) -9/Materials (discovered 3 exits: *Mat x2 / [*Sto]) -8/Materials -7/Factory -6/Factory History --------- Turn | Location | Event 23 | -11/Scrapyard | Discovered new exit (range 15) 100 | -11/Scrapyard | Entered Materials 215 | -10/Materials | Discovered new exit (range 12) 291 | -10/Materials | Discovered new exit (range 6) 390 | -10/Materials | Discovered new exit (range 16) 570 | -10/Materials | Discovered new exit (range 16) 579 | -10/Materials | Entered another Materials area 579 | -9/Materials | Evolved 2 slots: Propulsion x1, Utility x1 731 | -9/Materials | Destroyed 10 combat bots 802 | -9/Materials | Met 8R-AWN 827 | -9/Materials | Lost 9 parts (2p4n1u2w) 1018 | -9/Materials | Discovered new exit (range 12) 1032 | -9/Materials | Discovered new exit (range 11) 1089 | -9/Materials | Repaired Mining Laser 1106 | -9/Materials | Discovered new exit (range 12) 1122 | -9/Materials | Entered another Materials area 1122 | -8/Materials | Evolved 2 slots: Power x1, Utility x1 1364 | -8/Materials | Lost 4 parts (2p2n) 1640 | -8/Materials | Discovered new exit (range 3) 1659 | -8/Materials | Central database locked down 1679 | -8/Materials | Entered Factory 1679 | -7/Factory | Evolved 2 slots: Utility x2 1813 | -7/Factory | Build established: Mutant 1907 | -7/Factory | Garrison activated, responded to threat 1995 | -7/Factory | Fabricated C-17 Slicer (x3) 2237 | -7/Factory | Discovered new exit (range 16) 2262 | -7/Factory | Entered another Factory area 2262 | -6/Factory | Accompanied by 1 ally 2262 | -6/Factory | Evolved 2 slots: Propulsion x1, Utility x1 2449 | -6/Factory | Core integrity fell below 50% 2486 | -6/Factory | Core integrity fell below 20% 2488 | -6/Factory | Lost 10 parts (1p6n3u) 2495 | -6/Factory | Destroyed by C-17 Slicer with Blade Saw Last Messages --------------- 02453_ Backup Propulsion III disintegrated. 02453_ Acquired Nuclear Pulse Thruster. 02457_ Penetrated by Slug. 02457_ Nuclear Pulse Thruster destroyed. 02461_ System corrupted: Energy discharge (-25). 02465_ Slammed into K-01 Serf. 02488_ K-01 Serf collects debris. 02492_ Triggered Tesla Bomb Trap. 02492_ A bubble of electromagnetic force engulfs the area. 02492_ Tesla Bomb Trap short circuited. 02492_ A bubble of electromagnetic force engulfs the area. 02492_ Tesla Bomb Trap short circuited. 02492_ A bubble of electromagnetic force engulfs the area. 02492_ Tesla Bomb Trap short circuited. 02492_ A bubble of electromagnetic force engulfs the area. 02492_ Subcomponent Replicator disabled. Map ----- +----------------------------------------------------+ | ?????????????????????????????????????????????????? | | ?????????????????????????????????????????????????? | | ?????????????????????????????????????????????????? | | ?????????????????????????????????????????????????? | | ?????????????????????????????????????????????????? | | ?????????????????????????????????????????????????? | | ?????????????????????????????????????????????????? | | ?????????????????????????????????????????????????? | | ?????????????????????????????????????????????????? | | ?????????????????????????????????????????????????? | | ??????????????????????? ???????????????????????? | | ??????????????????????# ???????????????????????? | | ?????????????????????? ???????????????????????? | | ??????????????????????# #???????####+###???????? | | ??????????????????????# #???????# ######## | | ??????????????????????# #???????# # | | ??????????????????????+ #???????# # """ "" | | ??????????????????????# ## ??? ## # """ "" | | ??????????????????????# ## "?? ## + """ "" | | ????? ????????????????# ## """ ## # | | ???? ???????????????# ## F" + # | | ???? ???????????????# ## """ ## # | | ????? ??????????????# #? "" ## ######## | | ???? ############### #?? !# ####### | | ??? u R #### ### % | | ??# @ ^ k | | ??# c | | ??# """ "" H | | ??# """"" """"" s | | ??# """"" """"" c u | | ??# ##########c### | | ??# """ """ #???# " ####+## | | ??# """"" """"" #???# """ ########### | | ### """"" """"" #???# """"" #?????????# """"" | | uu #???# """ #?????????# """"" | | ?##""" """ #???# #?????????# """"" | | ??#"Y """"" #???# """"" #?????????# """"" | | ??#""" [ """"" #???# """"" #?????????# | | ??# #???# """ #?????????# """"" | | ??# * #???# #?????????# """"" | | ??# ###### #???######/###?????????# """"" | | ??# #????# #????????# #???????????# """"" | | ### #????# #????????# #???????????# | | #????# #????????# #???????????# | | #####"######## #????##### #####???????####### | | ## #????# #?????????????# | | ## ###### #?????????????? | | ## #?????????????? | | ## T" #?????????????? | | ## " #?????????????? | +----------------------------------------------------+ Best States ------------- Heat Dissipation 38 Energy Generation 21 Energy Capacity 265 Matter Stores 300 Matter Capacity 300 Sight Range 18 Terrain Scan Density 10 ECM Strength 1 Additional Mass Support 9 Armor Coverage 150 Propulsion Shielding 66 Evasion (%) 64 Targeting Accuracy 20 Core Analysis 9 Defensive Hacking 10 Item Schematics ----------------- None Robot Schematics ------------------ None Fabricated ------------ C-17 Slicer | x3 | -7/Factory | Preloaded Repaired ---------- Mining Laser | 13% | -9/Materials Studied --------- Flight Unit | -9/Materials | Hacked Lgt. Assault Rifle | -9/Materials | Hacked Lgt. Ion Engine | -9/Materials | Hacked Lgt. Nuclear Core | -8/Materials | Hacked Alien Tech Used ----------------- None Achievements -------------- Follow The Leader My Command Is Your Wish Challenges ------------ None Game ------ Seed GunTransmissionPlatform Manual? 0 Play Time 01:00:07 Cumulative 21.7 hours Start 2026.04.13 @ 22:14:42 End 2026.04.13 @ 23:16:40 Sessions 1 Manual Loads 0 Difficulty Rogue Special Mode None Game No. 41 Rogue 38 Adventurer 3 Explorer 0 Win Type - Total 1 Types 1/0/0/0/0/0/0/0/0/0 Lore% 23 Gallery% 21 Achievement% 23 Wizard Run 0 Options --------- Layout 1 ASCII 0 Keyboard 0 Movement Numpad Keybinds 0 Fullscreen 2 Font 24/Proggy Map View 50x35 Zoom Use 0% Tactical HUD 1 Map Filters NONE Filters NONE Steam 1 RUN: 65e8961b-a223-42d5-8573-31b974f007fa